bitfinex/quotes_ETHUSD_20250730
["timestamp","ask_amount","ask_price","bid_price","bid_amount"]
[1753901914474,3.0,3748.2,3746.5,1.2018]
[1753901914728,3.0,3748.3,3746.5,1.2018]
[1753901914927,30.0,3748.2,3746.6,2.66908663]
[1753901915077,0.13113222,3748.5,3747.4,1.204]
[1753901915274,0.13113222,3748.5,3747.5,4.834]
[1753901915712,0.13113222,3748.5,3747.4,1.204]
[1753901915713,30.0,3748.3,3747.4,1.204]
[1753901916008,30.0,3748.4,3747.4,1.204]
[1753901916222,0.13113222,3748.5,3747.4,1.204]
[1753901917500,0.04,3748.9,3747.5,2.66838974]
[1753901917703,30.0,3748.8,3747.6,4.828]
[1753901917901,0.04,3748.9,3747.7,1.2317]
[1753901918233,0.04,3748.9,3748.0,2.66803149]
[1753901918412,0.04,3748.9,3747.7,1.3196]
[1753901918731,0.04,3748.9,3747.9,1.3196]
[1753901918893,0.04,3748.9,3748.4,0.1336]
[1753901919246,0.04,3748.9,3747.8,6.412]
[1753901919247,0.04,3748.9,3748.6,0.1336]
[1753901919545,0.04,3748.9,3748.7,4.826]
[1753901919705,0.1336,3748.7,3748.5,1.3225]
[1753901919897,0.1336,3748.7,3748.1,4.823]
[1753901920095,0.1336,3748.5,3748.1,4.823]
[1753901920331,0.1336,3748.2,3748.1,4.823]
[1753901920732,0.1336,3748.2,3747.9,1.2035]
[1753901920896,30.0,3748.8,3748.0,4.823]
[1753901921202,0.03334489,3748.7,3747.8,6.412]
[1753901921402,0.1336,3748.0,3747.9,4.818]
[1753901921618,0.04,3748.9,3747.9,4.818]
[1753901921804,0.04,3748.9,3748.0,1.2472]
[1753901922007,0.04,3748.9,3748.1,4.83]
[1753901922231,0.04,3748.9,3748.0,1.2472]
[1753901922232,0.04,3748.9,3748.2,4.83]
[1753901922436,30.0,3748.8,3748.3,4.831]
[1753901922737,0.04,3748.9,3748.3,4.831]
[1753901924197,0.04,3748.9,3748.0,1.2472]
[1753901924403,0.04,3748.9,3748.1,4.823]
[1753901925298,0.04,3748.9,3748.2,4.824]
[1753901926016,0.04,3748.9,3748.3,4.818]
[1753901926341,0.04,3748.9,3748.4,4.818]
[1753901927531,0.04,3748.9,3748.0,1.2472]
[1753901927737,0.033344,3748.8,3747.8,6.412]
[1753901928062,0.04,3748.9,3747.9,4.81]
[1753901929731,0.73764522,3748.9,3747.9,4.81]
[1753901930125,0.04,3748.9,3747.9,4.81]
[1753901930325,0.04,3748.9,3748.0,1.2753]
[1753901930828,0.001,3749.3,3748.0,1.2753]
[1753901931135,0.001,3749.3,3748.4,2.66780089]
[1753901931436,0.001,3749.3,3748.6,1.2376]
[1753901931650,0.1346,3749.3,3748.8,0.1336]
[1753901931831,0.1346,3749.3,3748.6,1.2376]
[1753901932157,0.1336,3748.8,3748.7,4.793]
[1753901932459,0.1336,3748.8,3747.8,6.412]
[1753901932645,30.0,3749.2,3747.9,6.0293]
[1753901932835,0.1336,3748.1,3747.9,6.0293]
[1753901933250,0.1336,3748.1,3747.9,1.2403]
[1753901933428,0.1336,3748.1,3748.0,4.786]
[1753901933622,0.1336,3747.9,3747.8,6.412]
[1753901933948,0.1336,3747.9,3747.8,11.197]
[1753901934258,0.1336,3747.9,3747.8,4.784]
[1753901935463,0.1336,3748.0,3747.8,6.084]
[1753901935970,0.1336,3748.8,3747.9,0.1336]
[1753901936330,0.033336,3749.7,3747.8,1.3]
[1753901936554,0.1336,3748.2,3747.9,4.772]
[1753901936766,3.0,3749.7,3747.9,4.772]
[1753901936966,0.1336,3748.4,3747.9,4.9056]
[1753901937734,1.2248,3749.8,3747.8,1.3]
[1753901937735,2.66705547,3749.5,3748.0,4.778]
[1753901938000,3.0,3749.6,3747.8,1.3]
[1753901938001,0.1336,3748.1,3747.8,1.3]
[1753901938173,30.0,3748.7,3747.9,4.776]
[1753901938475,0.70523443,3748.6,3748.0,4.774]
[1753901938773,0.70523443,3748.6,3747.3,1.279]
[1753901938774,30.0,3748.7,3748.1,4.774]
[1753901938940,0.1336,3748.2,3748.1,4.774]
[1753901940172,0.1336,3748.2,3748.1,4.772]
[1753901940561,1.2931,3749.3,3748.1,4.772]
[1753901940739,0.1336,3748.3,3748.1,4.772]
[1753901941371,0.001,3749.3,3748.2,6.0556]
[1753901941548,0.001,3749.3,3748.3,4.76]
[1753901942686,0.001,3749.3,3748.4,1.2745]
[1753901942888,0.04,3749.9,3748.5,4.759]
[1753901943075,0.04,3749.9,3748.4,1.2745]
[1753901943389,0.04,3749.9,3748.5,4.759]
[1753901943584,0.04,3749.9,3748.4,3.94229914]
[1753901943768,0.04,3749.9,3748.1,2.6680126]
[1753901943769,0.04,3749.9,3748.5,4.756]
[1753901943969,0.04,3749.9,3748.6,6.0014]
[1753901944277,0.04,3749.9,3748.7,4.752]
[1753901944464,0.04,3749.9,3749.1,1.1986]
[1753901944872,0.001,3749.3,3749.2,4.75]
[1753901945582,0.001,3749.3,3749.1,1.1986]
[1753901945777,0.001,3749.3,3749.2,4.746]
[1753901946709,0.001,3749.3,3748.8,6.413]
[1753901946911,0.001,3749.3,3748.9,4.745]
[1753901947754,0.001,3749.3,3748.8,6.413]
[1753901948158,1.3288,3749.2,3748.9,4.736]
[1753901948361,0.001,3749.3,3748.9,4.736]
[1753901948611,0.001,3749.3,3748.8,6.413]
[1753901948818,3.99753048,3747.1,3746.4,0.004]
[1753901949027,3.218211,3745.5,3745.2,0.13919609]
[1753901949300,1.9699166,3745.1,3744.0,1.538]
[1753901949502,34.6401338,3745.1,3744.0,1.538]
[1753901949672,4.53212346,3745.4,3744.0,1.538]
[1753901949673,31.9699166,3745.3,3744.0,1.538]
[1753901949875,31.9699166,3745.3,3743.4,1.3516]
[1753901950077,1.3288,3745.4,3743.4,1.3516]
[1753901950078,31.9699166,3745.2,3744.2,5.074]
[1753901950410,31.9699166,3745.2,3744.2,0.1]
[1753901950411,1.9699166,3745.2,3744.2,0.1]
[1753901950696,31.9699166,3745.3,3744.2,0.1]
[1753901951065,1.9699166,3745.2,3744.2,0.1]
[1753901951394,30.0,3745.3,3744.2,0.1]
[1753901951395,1.9699166,3744.6,3744.2,0.1]
[1753901951694,2.1035166,3744.3,3744.2,0.1]
[1753901952260,33.4786166,3744.3,3744.2,0.1]
[1753901952459,1.3751,3745.5,3744.2,0.1]
[1753901952663,9.860505,3745.3,3744.2,0.1]
[1753901952913,1.3751,3745.5,3744.2,5.098]
[1753901952914,9.860505,3745.4,3744.2,5.098]
[1753901953467,9.860505,3745.4,3744.2,0.1]
[1753901953681,1.2889,3746.0,3744.3,5.0]
[1753901954418,9.860505,3745.9,3744.2,0.1]
[1753901954596,9.860505,3745.9,3744.4,4.998]
[1753901954961,9.860505,3745.9,3744.2,0.1]
[1753901955313,1.2889,3746.0,3744.3,4.989]
[1753901955520,1.2889,3746.0,3744.4,2.67065484]
[1753901955829,0.03336358,3746.6,3744.3,4.989]
[1753901955830,0.04,3746.9,3745.7,2.66966908]
[1753901955960,0.04,3746.9,3746.8,2.66894416]
[1753901956159,1.3702,3748.8,3746.8,4.994]
[1753901956376,1.3702,3748.8,3746.9,1.3308]
[1753901956708,1.3702,3748.8,3746.9,1.2808]
[1753901956884,1.3702,3748.8,3746.9,3.9496595]
[1753901957078,1.3702,3748.8,3747.0,2.66879439]
[1753901957407,1.3702,3748.8,3746.9,3.9496632]
[1753901957579,0.001,3749.3,3746.9,1.2808]
[1753901957774,0.001,3749.3,3747.0,7.65879]
[1753901957966,0.001,3749.3,3747.0,4.99]
[1753901958163,0.033344,3748.8,3746.9,1.2808]
[1753901958362,0.033344,3748.8,3747.1,4.993]
[1753901958562,0.001,3749.3,3747.2,4.993]
[1753901958779,1.3187,3748.3,3747.3,4.992]
[1753901958969,0.03334934,3748.2,3746.5,6.416]
[1753901959192,9.860505,3747.8,3746.6,4.988]
[1753901959394,9.860505,3747.8,3746.5,6.416]
[1753901959615,9.860505,3747.6,3746.6,4.986]
[1753901959795,9.860505,3747.4,3746.5,6.416]
[1753901960006,3.0,3747.1,3746.6,4.985]
[1753901960310,9.860505,3747.0,3746.6,4.985]
[1753901960513,9.860505,3747.0,3746.5,6.416]
[1753901960669,9.860505,3747.0,3746.7,4.983]
[1753901961005,2.55578588,3747.5,3746.7,4.983]
[1753901961006,9.860505,3747.4,3746.7,4.983]
[1753901962305,9.860505,3747.4,3746.5,6.416]
[1753901962306,1.2664,3747.5,3746.5,6.416]
[1753901962488,9.860505,3747.4,3746.8,4.977]
[1753901962803,0.1336,3746.6,3746.5,6.416]
[1753901963196,0.1336,3746.6,3746.5,11.383]
[1753901963398,0.1336,3746.6,3745.5,0.004]
[1753901963399,3.0,3746.4,3745.5,0.004]
[1753901963720,9.860505,3746.0,3745.6,4.694]
[1753901964424,9.860505,3746.2,3745.6,4.694]
[1753901964620,4.4300405,3746.3,3745.6,4.694]
[1753901964821,3.0,3746.1,3745.6,4.694]
[1753901965314,1.4300405,3746.3,3745.6,4.694]
[1753901965315,9.860505,3746.3,3745.6,4.694]
[1753901965611,2.66840003,3747.6,3745.6,4.694]
[1753901965812,9.860505,3747.4,3745.5,0.004]
[1753901966018,9.860505,3747.4,3745.7,4.954]
[1753901966218,2.66877997,3747.1,3745.5,0.004]
[1753901966394,2.66907946,3746.7,3745.8,4.949]
[1753901966597,9.860505,3746.5,3745.8,4.949]
[1753901966987,9.860505,3746.3,3745.8,4.949]
[1753901967187,12.52967629,3746.5,3745.5,0.004]
[1753901967516,9.860505,3746.3,3745.6,4.944]
[1753901967812,2.66917469,3746.5,3745.6,4.944]
[1753901967813,9.860505,3746.5,3745.6,4.944]
[1753901968014,1.2585,3747.0,3745.6,4.944]
[1753901968201,3.0,3746.8,3745.6,4.944]
[1753901968410,9.860505,3746.7,3745.6,4.944]
[1753901969191,9.860505,3746.7,3745.5,0.004]
[1753901969527,9.860505,3746.5,3745.6,4.931]
[1753901969684,9.860505,3746.3,3745.7,4.931]
[1753901969882,1.2860505,3746.4,3745.7,4.931]
[1753901970116,3.0,3746.5,3745.7,4.931]
[1753901970316,3.0,3746.6,3745.8,4.929]
[1753901970517,9.860505,3746.7,3745.5,0.004]
[1753901970518,0.03336447,3746.5,3745.9,4.929]
[1753901970716,2.66908663,3746.6,3745.9,4.929]
[1753901970922,3.0,3746.5,3745.5,0.004]
[1753901971133,0.56690866,3746.4,3746.0,4.926]
[1753901971295,2.66923659,3746.4,3745.5,0.004]
[1753901971489,0.03336091,3746.9,3745.5,0.004]
[1753901971490,3.0,3746.1,3745.5,0.004]
[1753901971706,3.0,3745.8,3745.5,0.004]
[1753901971890,3.0,3746.2,3745.5,0.004]
[1753901972248,9.860505,3746.2,3745.5,0.004]
[1753901972456,12.52990189,3746.2,3745.5,0.004]
[1753901972596,3.0,3746.1,3745.5,0.004]
[1753901972943,16.83680423,3745.6,3745.5,0.004]
[1753901973107,16.83680423,3745.6,3743.9,0.004]
[1753901973108,2.67001308,3745.3,3743.9,0.004]
[1753901973436,12.860505,3744.3,3743.9,0.004]
[1753901973588,14.371905,3744.3,3743.9,0.004]
[1753901973787,11.371905,3744.3,3743.9,0.004]
[1753901974021,1.5114,3744.3,3743.9,0.004]
[1753901974238,11.54263926,3744.3,3743.9,0.004]
[1753901974607,17.21336543,3744.3,3743.9,0.004]
[1753901974939,14.54263926,3744.3,3743.9,0.004]
[1753901975236,17.21336543,3744.3,3743.9,0.004]
[1753901975440,14.54263926,3744.3,3743.9,0.004]
[1753901975683,11.371905,3744.3,3743.9,0.004]
[1753901976377,0.1336,3744.3,3743.9,0.004]
[1753901976690,9.994105,3744.3,3743.9,0.004]
[1753901976889,0.1336,3744.3,3743.9,0.004]
[1753901978232,1.285,3745.9,3743.9,0.004]
[1753901978433,0.1336,3744.6,3744.1,0.1736]
[1753901978632,0.1336,3744.6,3744.3,4.904]
[1753901978937,9.860505,3746.1,3744.4,1.2968]
[1753901979159,9.860505,3746.3,3744.5,0.1336]
[1753901979362,0.03336714,3746.2,3744.4,1.2968]
[1753901979565,0.1336,3744.7,3744.4,6.1988]
[1753901979956,0.1336,3744.7,3744.5,4.902]
[1753901980359,0.1336,3744.7,3744.1,0.04]
[1753901980564,9.860505,3745.2,3744.3,4.899]
[1753901980876,9.860505,3745.2,3744.1,0.04]
[1753901980877,0.1336,3744.3,3744.1,0.04]
[1753901981076,0.1336,3744.3,3744.2,4.998]
[1753901981680,0.1336,3744.3,3744.2,4.993]
[1753901982093,0.1336,3744.3,3744.2,4.988]
[1753901982273,0.1336,3744.3,3744.2,0.1]
[1753901983467,1.395,3744.3,3744.2,0.1]
[1753901983794,0.1336,3744.3,3744.2,0.1]
[1753901984770,1.2969,3745.4,3744.2,0.1]
[1753901985102,1.2959,3746.3,3744.2,0.09483]
[1753901985298,0.13422164,3746.8,3744.3,1.3169]
[1753901985498,0.1336,3745.3,3744.7,0.1336]
[1753901985799,1.2959,3746.8,3744.8,6.2376]
[1753901985985,1.2959,3746.8,3744.8,1.3636]
[1753901985986,9.860505,3746.6,3744.8,1.3636]
[1753901986187,0.1336,3745.1,3744.8,1.3636]
[1753901986495,0.03336358,3746.6,3744.9,4.873]
[1753901986695,9.860505,3746.6,3744.9,4.873]
[1753901986868,0.1336,3745.3,3744.8,1.3636]
[1753901987064,0.1336,3745.3,3744.9,4.871]
[1753901987295,0.197023,3746.7,3744.8,1.3636]
[1753901987499,0.1336,3745.3,3744.9,4.869]
[1753901988202,3.0,3746.3,3745.0,4.865]
[1753901988382,0.1336,3745.1,3745.0,4.865]
[1753901988902,2.86871737,3746.7,3745.0,4.865]
[1753901988903,9.860505,3746.6,3745.0,4.865]
[1753901989079,0.1336,3745.3,3745.0,4.865]
[1753901989599,2.66936931,3746.3,3744.8,1.3636]
[1753901989802,9.860505,3746.3,3745.1,4.856]
[1753901990003,0.1336,3745.2,3745.1,4.856]
[1753901990807,0.1336,3745.2,3744.8,1.3656]
[1753901991005,3.0,3745.8,3744.8,0.002]
[1753901991184,1.58637923,3745.7,3744.9,4.846]
[1753901991373,0.03337159,3745.7,3744.9,4.846]
[1753901992011,0.20514747,3745.7,3744.9,4.846]
[1753901992194,11.141405,3745.6,3744.9,4.847]
[1753901992396,9.860505,3745.5,3744.8,0.002]
[1753901992596,9.860505,3745.5,3744.9,4.847]
[1753901992597,9.860505,3745.4,3744.9,4.847]
[1753901992908,12.5307997,3745.0,3744.8,0.002]
[1753901993122,9.89388372,3744.9,3744.8,0.002]
[1753901993278,12.53073593,3745.0,3744.8,0.002]
[1753901993480,3.0,3745.1,3744.8,0.002]
[1753901993678,9.860505,3745.0,3744.8,0.002]
[1753901993914,11.11357107,3744.9,3744.8,0.002]
[1753901994070,1.14148649,3745.3,3744.8,0.002]
[1753901994071,9.860505,3745.0,3744.8,0.002]
[1753901994273,3.0,3745.1,3744.8,0.002]
[1753901994787,9.860505,3745.0,3744.8,0.002]
[1753901995787,3.0,3745.1,3744.8,0.002]
[1753901996023,9.860505,3745.5,3744.8,0.002]
[1753901996228,9.89387927,3745.4,3744.8,0.002]
[1753901996375,9.860505,3745.4,3744.8,0.002]
[1753901996776,3.0,3745.1,3744.8,0.002]
[1753901997183,9.860505,3744.9,3744.8,0.002]
[1753901997530,9.860505,3745.0,3744.8,0.002]
[1753901997829,11.4135648,3744.9,3744.8,0.002]
[1753901997989,9.860505,3745.2,3744.8,0.002]
[1753901998303,9.860505,3745.5,3744.8,0.002]
[1753901999894,9.860505,3745.5,3744.8,4.835]
[1753902000104,9.860505,3745.4,3744.8,0.002]
[1753902000313,9.860505,3745.2,3744.8,0.002]
[1753902000609,4.3408,3744.9,3744.8,0.002]
[1753902000795,4.3408,3744.9,3744.2,0.09483]
[1753902000796,1.3408,3744.9,3744.2,0.09483]
[1753902000987,2.80432617,3744.3,3744.2,0.09483]
[1753902001183,15.69821524,3744.3,3744.2,0.09483]
[1753902001383,13.12368499,3744.3,3744.2,0.09483]
[1753902001606,0.1336,3744.3,3744.2,0.09483]
[1753902001921,15.66483117,3744.3,3744.2,0.09483]
[1753902002133,3.0,3743.9,3743.1,0.04]
[1753902002350,9.860505,3743.6,3743.1,0.04]
[1753902002631,2.67066246,3744.4,3743.1,0.04]
[1753902002632,7.631,3745.3,3743.1,0.04]
[1753902002817,3.0,3744.9,3743.2,1.3593]
[1753902003018,11.157705,3744.2,3743.2,6.1853]
[1753902003219,9.860505,3744.1,3743.2,4.825]
[1753902003420,9.860505,3743.9,3743.1,0.04]
[1753902003625,1.2972,3744.2,3743.1,0.04]
[1753902003938,9.860505,3744.0,3743.1,4.862]
[1753902004096,9.860505,3743.8,3743.1,0.04]
[1753902004496,9.860505,3743.6,3743.1,0.04]
[1753902004696,1.11910909,3743.9,3743.1,0.04]
[1753902004926,9.860505,3743.7,3743.1,0.04]
[1753902005129,3.0,3744.0,3743.1,0.04]
[1753902005309,4.822,3744.7,3743.1,0.04]
[1753902005310,5.67126676,3743.6,3743.1,0.04]
[1753902005640,1.2972,3744.2,3743.1,0.04]
[1753902005806,2.67108526,3743.8,3743.1,0.04]
[1753902006002,3.0,3744.0,3743.1,0.04]
[1753902006003,1.3078,3743.5,3743.1,0.04]
[1753902006319,9.860505,3743.4,3743.1,0.04]
[1753902007047,1.407,3743.2,3742.9,0.12081432]
[1753902007247,9.860505,3742.8,3740.8,1.4396]
[1753902007417,9.860505,3742.4,3740.8,1.4396]
[1753902007608,16.97872989,3742.2,3740.8,1.4396]
[1753902007811,16.97872989,3742.2,3740.1,0.04]
[1753902008010,2.67258198,3741.7,3741.6,1e-08]
[1753902008243,2.67315351,3740.9,3740.1,0.04]
[1753902008445,11.195405,3740.6,3740.1,0.04]
[1753902008650,9.860505,3740.5,3740.1,0.04]
[1753902008838,9.860505,3740.3,3740.1,0.04]
[1753902009164,1.47048525,3740.6,3740.1,0.04]
[1753902009165,12.860505,3740.2,3740.1,0.04]
[1753902009946,9.860505,3740.2,3740.1,0.04]
[1753902010206,9.860505,3740.4,3740.1,0.04]
[1753902010474,0.13618476,3741.1,3740.4,2.67345469]
[1753902010644,9.967695,3742.3,3740.2,1.361]
[1753902010844,0.10719,3742.3,3740.6,1.361]
[1753902011089,9.860505,3742.2,3740.6,1.361]
[1753902011684,9.8939087,3742.1,3740.6,1.361]
[1753902011980,9.860505,3742.3,3740.6,1.361]
[1753902012205,9.860505,3742.8,3740.6,1.361]
[1753902012406,0.04,3742.9,3741.7,2.67251199]
[1753902012695,0.04,3742.9,3741.4,1.361]
[1753902012863,0.719325,3742.6,3741.4,1.361]
[1753902013048,0.1336,3742.1,3741.5,0.1336]
[1753902013249,0.1336,3741.6,3740.9,0.1336]
[1753902013488,0.1,3741.1,3739.3,6.424]
[1753902013691,0.1,3741.4,3739.9,0.1336]
[1753902013895,0.1,3740.4,3739.0,6.424]
[1753902014401,0.1,3739.4,3739.0,6.424]
[1753902014607,0.1,3739.7,3738.5,4.859]
[1753902015113,0.1,3739.7,3738.2,2.675062]
[1753902015114,0.1,3739.4,3737.4,6.424]
[1753902015407,0.1,3738.7,3737.4,6.424]
[1753902015566,0.1,3739.0,3737.4,6.424]
[1753902015767,0.1,3739.0,3737.5,4.853]
[1753902015987,0.04,3737.9,3737.4,6.384]
[1753902016304,0.04,3737.9,3737.5,5.3336]
[1753902017097,0.04,3737.9,3737.6,4.848]
[1753902017410,0.04,3737.9,3737.7,2.67538486]
[1753902017554,0.04,3737.9,3737.6,4.848]
[1753902017959,0.04,3737.9,3737.5,0.4846]
[1753902018159,0.04,3737.9,3737.6,4.846]
[1753902019158,0.04,3737.9,3737.7,0.55]
[1753902019358,0.04,3738.9,3737.8,0.4846]
[1753902019612,0.04,3738.9,3738.0,2.67522739]
[1753902019805,0.04,3738.9,3738.0,0.4846]
[1753902019986,0.04,3738.9,3738.1,4.838]
[1753902020612,0.04,3738.9,3738.0,0.4846]
[1753902020613,0.1,3738.8,3738.0,0.4846]
[1753902020808,0.1,3738.6,3738.2,4.836]
[1753902021109,0.04,3738.9,3738.0,0.4846]
[1753902021315,0.04,3738.9,3738.3,4.835]
[1753902022863,0.04,3738.9,3738.8,2.67465496]
[1753902023064,0.04,3738.9,3738.8,3.15925496]
[1753902023311,0.04,3739.9,3738.8,3.70925496]
[1753902023463,0.04,3739.9,3739.4,0.55]
[1753902023665,0.04,3740.9,3739.9,0.55]
[1753902023863,0.04,3740.9,3740.1,0.55]
[1753902024113,0.04,3740.9,3740.3,0.4846]
[1753902024296,0.04,3740.9,3740.8,0.1336]
[1753902024644,0.04,3740.9,3740.8,7.63782497]
[1753902024822,0.04,3740.9,3740.8,8.67242497]
[1753902025123,0.04,3741.9,3741.2,2.67291637]
[1753902025298,0.04,3741.9,3741.0,0.55]
[1753902025501,0.04,3741.9,3741.8,0.1336]
[1753902025820,0.04,3741.9,3741.8,4.9606]
[1753902026027,0.04,3741.9,3741.8,4.824]
[1753902026319,0.1,3741.8,3741.4,4.823]
[1753902026617,0.1,3741.6,3738.8,2.67463611]
[1753902026766,1.4492,3741.8,3739.6,5.3096]
[1753902026767,0.1,3741.4,3739.6,5.3096]
[1753902026969,0.1,3741.0,3739.7,4.824]
[1753902027175,0.04,3741.9,3739.8,4.822]
[1753902027176,0.1,3740.6,3739.8,4.822]
[1753902027646,0.1,3740.6,3739.1,0.4846]
[1753902027647,0.1,3740.3,3739.1,0.5246]
[1753902027802,0.1,3739.9,3739.1,0.5246]
[1753902028129,0.1,3739.2,3739.1,0.04]
[1753902028280,0.1,3739.4,3739.1,0.04]
[1753902028481,0.1,3739.2,3739.1,0.04]
[1753902028919,9.960505,3739.2,3739.1,0.04]
[1753902029281,14.47988378,3739.2,3739.1,0.04]
[1753902029797,4.61937878,3739.2,3739.1,0.04]
[1753902030004,14.47988378,3739.2,3739.1,0.04]
[1753902030914,0.1,3738.2,3738.1,0.04]
[1753902031585,12.960505,3738.2,3738.1,0.04]
[1753902032033,3.1,3738.2,3738.1,0.04]
[1753902032302,0.1,3738.2,3738.1,0.04]
[1753902032758,1.3433,3738.3,3738.1,0.04]
[1753902032955,3.0,3739.0,3738.1,0.04]
[1753902032956,0.03343229,3738.9,3738.1,0.04]
[1753902033369,1.3639,3738.2,3738.1,0.04]
[1753902034181,4.3639,3738.2,3738.1,0.04]
[1753902036160,4.4975,3738.2,3738.1,0.04]
[1753902037673,0.1336,3738.2,3738.1,0.04]
[1753902038997,0.1,3738.4,3738.1,0.04]
[1753902039150,0.1,3738.2,3738.1,0.04]
[1753902039356,0.1,3738.4,3738.1,0.04]
[1753902039652,0.1,3738.2,3738.1,0.04]
[1753902039851,1.4098,3738.8,3738.1,4.847]
[1753902040076,0.1,3738.2,3738.1,0.04]
[1753902040677,0.1,3739.0,3738.1,0.04]
[1753902040991,0.1,3738.7,3738.1,0.04]
[1753902041364,9.860505,3738.6,3738.1,0.04]
[1753902041564,0.1,3738.3,3738.1,0.04]
[1753902041766,12.89394355,3738.2,3738.1,0.04]
[1753902041959,12.860505,3738.2,3738.1,0.04]
[1753902042657,15.53558926,3738.2,3738.1,0.04]
[1753902042858,16.96698926,3738.2,3738.1,0.04]
[1753902043159,0.1,3737.5,3737.4,0.002]
[1753902043600,15.63609028,3737.5,3737.4,0.002]
[1753902043758,12.960505,3737.5,3737.4,0.002]
[1753902045253,17.07869028,3737.5,3737.4,0.002]
[1753902045978,17.27917097,3737.5,3737.4,0.002]
[1753902046180,1.4796,3736.2,3736.1,0.04]
[1753902046602,1.5523,3734.9,3732.0,0.04679]
[1753902046761,9.860505,3734.9,3734.5,0.6499]
[1753902046955,0.1,3735.6,3734.5,0.6499]
[1753902047273,1.4523,3736.5,3733.8,1.217]
[1753902047274,9.860505,3735.4,3734.0,0.6499]
[1753902047472,0.1,3734.9,3734.0,0.6499]
[1753902047784,0.1,3734.9,3734.0,5.4619]
[1753902047987,0.1,3735.1,3734.0,5.4619]
[1753902048300,0.1,3735.5,3734.0,0.6499]
[1753902048506,0.1,3735.4,3734.0,0.6499]
[1753902048806,0.2336,3734.9,3734.0,0.6499]
[1753902049410,0.1336,3734.9,3734.2,4.813]
[1753902049555,0.1336,3734.9,3734.4,4.812]
[1753902049961,0.1336,3734.9,3734.1,0.044]
[1753902049962,0.1336,3735.0,3734.1,0.044]
[1753902050197,1.3916,3736.2,3734.1,0.044]
[1753902050198,0.1336,3735.1,3734.6,4.809]
[1753902050384,0.1336,3735.1,3734.9,0.6499]
[1753902050772,0.1,3736.1,3734.9,0.6499]
[1753902051054,0.1336,3735.8,3735.2,0.1336]
[1753902051698,0.1336,3735.8,3735.3,2.67716113]
[1753902051899,0.04,3736.9,3735.4,0.6499]
[1753902052099,0.1336,3736.1,3735.4,0.7835]
[1753902052348,0.04,3736.9,3735.8,0.7835]
[1753902052530,0.1,3736.6,3735.9,4.801]
[1753902052712,0.14,3736.9,3735.9,4.801]
[1753902053115,0.04,3736.9,3735.9,4.801]
[1753902053316,0.04,3736.9,3736.2,0.55]
[1753902053534,0.04,3736.9,3735.4,0.6499]
[1753902053733,0.04,3736.9,3735.6,3.22694613]
[1753902053918,0.04,3736.9,3735.6,0.55]
[1753902054114,0.04,3736.9,3735.8,0.6499]
[1753902054317,0.1,3736.3,3735.8,0.6499]
[1753902054647,0.1,3736.6,3735.9,4.811]
[1753902054846,0.1,3736.1,3735.8,0.6499]
[1753902055047,0.1,3736.1,3734.9,7.0839]
[1753902055216,0.1,3735.5,3735.0,4.808]
[1753902055417,0.1,3735.5,3734.9,7.0839]
[1753902055845,9.860505,3735.4,3733.7,0.6499]
[1753902056139,11.331505,3734.9,3734.0,1.795]
[1753902056345,11.331505,3734.9,3734.0,4.814]
[1753902056529,14.331505,3734.9,3734.1,4.856]
[1753902056729,14.331505,3734.9,3734.1,0.044]
[1753902057144,0.00700193,3736.9,3734.4,0.6499]
[1753902057381,30.0,3737.8,3735.6,0.55]
[1753902057555,30.0,3737.8,3735.7,5.4829]
[1753902057754,30.0,3737.8,3735.8,4.835]
[1753902057956,30.0,3737.6,3735.7,0.6499]
[1753902058178,30.0,3737.8,3735.7,0.6499]
[1753902058511,30.0,3737.8,3736.5,0.6499]
[1753902058959,30.0,3737.8,3736.6,4.832]
[1753902059478,30.0,3737.8,3736.5,5.4789]
[1753902059690,31.4552,3737.6,3735.6,0.6499]
[1753902059875,30.0,3737.5,3735.6,0.6499]
[1753902060090,0.03344571,3737.4,3735.6,0.6499]
[1753902060282,30.0,3737.3,3735.6,0.6499]
[1753902060445,30.0,3737.1,3735.1,0.04]
[1753902060643,1.4552,3737.6,3735.1,0.04]
[1753902060644,32.67603996,3736.9,3735.1,0.04]
[1753902060958,1.45205108,3736.8,3735.1,0.04]
[1753902061158,0.03345197,3736.7,3735.1,0.04]
[1753902061393,1.321,3736.4,3735.1,0.04]
[1753902061543,30.0,3736.2,3735.1,0.04]
[1753902061895,30.0,3736.3,3735.1,0.04]
[1753902062520,0.1336,3735.2,3735.1,0.04]
[1753902062884,1.321,3736.4,3735.1,0.04]
[1753902063323,0.1336,3735.2,3735.1,0.04]